bitfinex-derivatives/quotes_ETHF0:USTF0_20251012
["timestamp","ask_amount","ask_price","bid_price","bid_amount"]
[1760284633665,0.44573,4036.3,4036.2,3.43926535]
[1760284634654,0.44568,4036.8,4036.4,0.4457]
[1760284634860,0.4479135,4037.1,4036.6,3.4364]
[1760284635071,6.465892,4036.9,4036.8,3.4364]
[1760284635264,3.6579208,4036.9,4036.8,3.4364]
[1760284635459,0.44566,4036.9,4036.5,1.7794]
[1760284635660,3.14546098,4036.9,4036.6,3.4364]
[1760284635857,0.44567,4036.8,4036.6,3.4364]
[1760284636365,2.69980098,4036.7,4036.6,3.4364]
[1760284636970,0.0022735,4037.1,4036.6,3.4364]
[1760284637168,0.0022735,4037.1,4037.0,4.7701]
[1760284644976,0.0022735,4037.1,4037.0,5.21575]
[1760284648669,0.01,4037.8,4037.7,0.44557]
[1760284648869,0.01,4037.8,4037.7,8.37407]
[1760284649783,0.01270075,4037.8,4037.7,8.37407]
[1760284655077,0.44541,4039.2,4039.0,1.3336]
[1760284655278,0.4454,4039.3,4039.2,3.8612]
[1760284655484,0.44538,4039.5,4039.4,3.4158]
[1760284655687,6.01974699,4039.8,4039.7,3.4158]
[1760284655985,3.25129166,4039.9,4039.8,3.4158]
[1760284656185,3.2078,4040.0,4039.8,3.4158]
[1760284656186,3.2078,4040.0,4039.9,3.4158]
[1760284656383,13.08490693,4043.3,4040.6,3.4158]
[1760284656384,3.2078,4040.9,4040.6,3.4158]
[1760284656578,0.88792889,4042.9,4040.6,3.4158]
[1760284656579,3.2078,4042.2,4041.6,3.4158]
[1760284656778,0.44513,4041.8,4041.6,3.4158]
[1760284656983,0.44513,4041.8,4041.5,1.3336]
[1760284657188,2.67676903,4042.1,4041.6,3.4158]
[1760284657481,2.67676903,4041.7,4041.6,3.4158]
[1760284657675,2.58764589,4042.1,4042.0,1.3336]
[1760284657873,3.6558262,4042.2,4042.0,1.3336]
[1760284658074,3.2107462,4042.2,4042.1,3.4158]
[1760284658287,0.0029462,4042.2,4042.1,3.4158]
[1760284658483,2.59059209,4042.2,4042.1,3.4158]
[1760284658682,0.0029462,4042.2,4042.1,3.4158]
[1760284659289,0.22,4043.3,4043.0,1.3336]
[1760284659290,0.44496,4043.2,4043.0,1.3336]
[1760284659490,0.44496,4043.2,4043.1,3.4158]
[1760284659684,2.59487801,4043.2,4043.1,3.4158]
[1760284660187,2.5979427,4043.2,4043.1,3.41792479]
[1760284662491,0.44503,4042.6,4042.5,4.7494]
[1760284662788,0.44503,4042.6,4041.9,3.2078]
[1760284662789,0.44523,4040.8,4040.0,1.3336]
[1760284662980,3.2078,4041.5,4040.8,3.188]
[1760284663181,3.2078,4041.5,4041.1,3.188]
[1760284663382,0.44518,4041.3,4041.1,0.00313492]
[1760284663589,3.65298,4041.3,4041.2,3.188]
[1760284663982,6.45579179,4041.3,4041.2,3.188]
[1760284664294,0.1526,4041.2,4041.1,0.00313492]
[1760284664490,6.45579179,4041.3,4041.1,0.00313492]
[1760284664786,2.61900615,4041.2,4041.1,0.00313492]
[1760284664985,3.2078,4041.9,4041.1,7.37260791]
[1760284665185,0.44515,4041.6,4041.5,1.3051]
[1760284665386,0.44515,4041.6,4041.1,0.00313492]
[1760284665387,0.44518,4041.2,4041.1,0.00313492]
[1760284665593,0.59778,4041.2,4041.1,0.00313492]
[1760284665889,0.59778,4041.2,4040.0,8.70307299]
[1760284665890,0.44531,4040.1,4040.0,1.3336]
[1760284666087,3.2078,4040.2,4040.0,1.3336]
[1760284666286,3.2078,4040.2,4040.1,3.188]
[1760284666686,6.0649558,4040.2,4040.1,3.188]
[1760284666892,6.06705153,4040.2,4040.1,3.19018441]
[1760284667290,2.85925153,4040.2,4040.1,3.63549441]
[1760284667491,0.00209573,4040.2,4040.1,3.63549441]
[1760284667685,2.59897081,4040.2,4040.1,3.19018441]
[1760284668688,2.60897081,4040.2,4040.1,3.19018441]
[1760284669483,0.01209573,4040.2,4040.1,3.19018441]
[1760284669990,2.801758,4040.2,4040.1,3.19018441]
[1760284673194,0.01209573,4040.2,4040.1,3.19018441]
[1760284674283,2.87897521,4040.2,4040.1,3.19018441]
[1760284675290,6.23937521,4040.2,4040.1,0.00218441]
[1760284675796,0.44535,4039.7,4039.5,1.3051]
[1760284675985,0.44538,4039.4,4039.3,6.3958]
[1760284676190,0.44538,4039.4,4039.3,3.188]
[1760284676389,2.41296739,4039.4,4039.2,0.44541]
[1760284676592,2.41296739,4039.4,4039.3,3.188]
[1760284676791,3.21989573,4040.2,4039.5,1.3051]
[1760284677088,0.01209573,4040.2,4040.1,3.188]
[1760284677490,2.85767841,4040.2,4040.1,3.188]
[1760284678596,2.85767841,4040.2,4039.5,1.30694593]
[1760284678597,0.44534,4039.8,4039.5,1.75231593]
[1760284678892,6.06547841,4040.2,4039.5,1.75231593]
[1760284678893,2.69848576,4039.7,4039.6,3.188]
[1760284679105,2.69848576,4039.7,4039.6,3.63336]
[1760284679398,2.69848576,4040.1,4040.0,4.93842]
[1760284679600,3.21989573,4040.2,4040.0,1.75042]
[1760284679789,3.21989573,4040.2,4040.1,3.188]
[1760284679991,0.01209573,4040.2,4040.1,3.188]
[1760284680296,2.72671212,4040.2,4040.1,3.188]
[1760284680989,0.1526,4040.7,4040.0,1.3051]
[1760284681189,0.1526,4040.7,4040.1,3.188]
[1760284681394,0.1526,4040.7,4039.5,1.30694593]
[1760284681395,0.44534,4039.8,4039.7,3.188]
[1760284681601,3.2078,4040.3,4039.6,3.63336]
[1760284681792,3.2078,4040.3,4039.6,3.188]
[1760284681793,0.44536,4039.7,4039.6,3.188]
[1760284681992,0.44745473,4039.7,4039.6,3.188]
[1760284682191,2.72508788,4039.7,4039.6,3.188]
[1760284682501,3.17043788,4039.7,4039.6,3.188]
[1760284682696,2.72508788,4039.7,4039.6,3.2825]
[1760284682893,2.72508788,4039.7,4039.6,3.72786]
[1760284683093,0.00209473,4039.7,4039.6,3.72786]
[1760284684802,0.00209473,4039.7,4039.6,6.93566]
[1760284685001,0.00209473,4039.7,4039.6,3.65316]
[1760284685199,3.21051255,4039.7,4039.6,3.2825]
[1760284685504,3.21051255,4039.7,4039.5,1.39764593]
[1760284685505,0.59246,4039.6,4039.5,0.00184593]
[1760284685797,0.44544,4038.9,4038.3,3.728]
[1760284686007,0.44545,4038.8,4038.6,3.2825]
[1760284686205,3.27652358,4038.8,4038.5,1.75058]
[1760284686398,3.3549,4039.1,4038.5,1.75058]
[1760284686399,2.83107358,4039.0,4038.6,3.2825]
[1760284686592,0.44545,4038.8,4038.6,0.00267251]
[1760284686796,2.76098355,4038.7,4038.6,0.00267251]
[1760284687005,0.1471,4038.7,4038.6,0.00267251]
[1760284687302,2.76098355,4038.7,4038.6,0.00267251]
[1760284689201,2.77098355,4038.7,4038.6,0.00267251]
[1760284691109,5.97582547,4038.7,4038.6,0.00267251]
[1760284693205,0.1445,4038.0,4037.8,0.44556]
[1760284693707,2.67815679,4037.9,4037.8,0.44556]
[1760284693907,2.67815679,4037.9,4037.8,3.72806]
[1760284694101,2.67815679,4037.9,4037.8,3.2825]
[1760284694306,3.4155479,4038.0,4037.8,3.28534735]
[1760284694502,0.59004,4038.0,4037.8,3.28534735]
[1760284694804,0.44561,4037.3,4037.2,3.2825]
[1760284695004,0.44563,4037.2,4037.0,4.6783]
[1760284695209,0.59014,4037.1,4036.9,3.2078]
[1760284695508,2.82505388,4037.1,4036.9,3.2078]
[1760284695708,0.1445,4037.0,4036.9,3.21016817]
[1760284696004,2.85147779,4037.0,4036.9,3.21016817]
[1760284696310,2.85147779,4037.0,4036.9,0.00236817]
[1760284696906,2.85147779,4037.0,4036.3,1.74712792]
[1760284696907,0.44574,4036.2,4036.1,1.74712792]
[1760284697203,0.59026,4036.1,4035.8,0.44578]
[1760284697409,0.59026,4036.1,4035.8,3.72828]
[1760284697608,2.83800143,4036.0,4035.8,0.44578]
[1760284697807,2.83800143,4036.0,4035.9,3.2825]
[1760284698109,2.84098475,4036.0,4035.9,3.28517315]
[1760284699706,2.84098475,4036.0,4035.9,0.00267315]
[1760284699909,2.84098475,4036.0,4035.0,1.11466]
[1760284699910,5.9921502,4036.0,4034.8,3.2078]
[1760284700207,0.1445,4035.0,4034.8,3.2078]
[1760284700408,0.44586,4035.1,4034.9,3.2825]
[1760284700710,2.83639239,4035.0,4034.9,3.2825]
[1760284700911,2.83639239,4035.0,4034.9,3.28495858]
[1760284701104,3.28226239,4035.0,4034.9,0.00245858]
[1760284701306,0.59037,4035.0,4034.9,0.00245858]
[1760284701505,3.42676239,4035.0,4034.9,0.00245858]
[1760284701716,2.83639239,4035.0,4034.9,3.28495858]
[1760284701911,2.98089239,4035.0,4034.9,0.00245858]
[1760284702110,3.3675168,4035.0,4034.9,0.00245858]
[1760284702411,3.3675168,4035.0,4033.5,4.6783]
[1760284702412,1.25925,4034.8,4033.5,4.6783]
[1760284702707,0.1445,4033.7,4033.4,0.44604]
[1760284702910,0.44602,4033.7,4033.3,3.2078]
[1760284703308,0.1445,4033.4,4033.3,0.00293311]
[1760284703716,2.88165666,4033.4,4033.3,0.00293311]
[1760284704208,6.14687814,4033.4,4033.3,0.00293311]
[1760284704712,6.14687814,4033.4,4032.4,3.72865]
[1760284704713,6.00237814,4033.4,4032.4,3.72865]
[1760284705013,6.00237814,4033.4,4032.4,3.2825]
[1760284705014,0.44612,4032.8,4032.4,3.2825]
[1760284705209,0.58773,4032.7,4032.4,3.2825]
[1760284705408,0.1416,4032.6,4032.2,0.44617]
[1760284705608,0.00319063,4032.6,4032.3,0.44616]
[1760284705809,2.62254576,4032.5,4032.4,3.2825]
[1760284707206,2.62254576,4032.5,4032.3,3.72866]
[1760284708206,0.1416,4032.4,4032.2,0.00212971]
[1760284708403,0.1416,4032.3,4032.2,0.00212971]
[1760284708607,3.01804176,4032.3,4032.2,0.00212971]
[1760284708911,0.1416,4032.3,4032.2,2.971e-05]
[1760284709111,2.94564716,4032.3,4032.2,2.971e-05]
[1760284709909,2.94564716,4032.3,4032.2,3.28252971]
[1760284709910,2.80404716,4032.3,4032.2,3.28252971]
[1760284710113,2.80404716,4032.3,4032.2,2.971e-05]
[1760284710313,0.00319063,4032.6,4032.2,2.971e-05]
[1760284710314,0.44616,4032.4,4032.2,2.971e-05]
[1760284710513,0.00319063,4032.6,4032.2,0.44620971]
[1760284710514,0.44933063,4032.6,4032.2,0.44620971]
[1760284710818,2.73846364,4032.5,4032.4,0.44615]
[1760284711118,2.73846364,4032.5,4032.4,3.72865]
[1760284711316,2.73846364,4032.5,4032.4,6.93645]
[1760284713710,0.00319063,4032.6,4032.5,1.3752]
[1760284713912,0.00319063,4032.6,4032.5,4.8253]
[1760284714111,0.00319063,4032.6,4032.4,3.65395]
[1760284714112,3.20229293,4032.6,4032.4,3.65395]
[1760284714311,2.90515293,4032.6,4032.4,3.65395]
[1760284714507,0.149,4032.5,4032.4,3.2078]
[1760284714811,0.44616,4032.4,4032.2,2.971e-05]
[1760284715015,3.15696381,4032.5,4032.2,2.971e-05]
[1760284715212,2.71081381,4032.3,4032.2,0.44619971]
[1760284715418,2.71081381,4032.4,4032.2,0.44619971]
[1760284715620,2.71081381,4032.4,4032.3,3.4501]
[1760284715819,0.44615,4032.5,4032.3,3.89627]
[1760284716016,0.15219063,4032.6,4032.4,0.44616]
[1760284716218,0.59833063,4032.6,4032.4,0.44616]
[1760284716521,0.59833063,4032.6,4032.3,0.44616]
[1760284716522,2.59840346,4032.5,4032.3,0.44616]
[1760284716718,2.59840346,4032.5,4032.4,3.4501]
[1760284717319,2.74740346,4032.5,4032.3,0.44616]
[1760284717519,2.74740346,4032.5,4032.3,3.89626]
[1760284718012,2.59840346,4032.5,4032.4,3.4501]
[1760284719122,2.59840346,4032.5,4032.4,6.6579]
[1760284720123,0.00319063,4032.6,4032.4,6.6579]
[1760284720124,0.00319063,4032.6,4032.5,5.27145]
[1760284723211,6.3e-07,4032.6,4032.5,5.27145]
[1760284723412,1.11489,4034.3,4033.5,2.39809]
[1760284723413,3.3589,4034.3,4033.5,2.39809]
[1760284723617,3.65375,4034.3,4034.1,0.44597]
[1760284723919,2.87189791,4034.2,4034.1,3.73257]
[1760284724217,3.3589,4035.6,4035.4,3.73242]
[1760284724425,3.3589,4035.6,4035.4,0.44757464]
[1760284724426,3.2078,4035.6,4035.4,0.44757464]
[1760284724617,0.00303673,4035.6,4035.5,4.5696]
[1760284727529,2.71008976,4035.6,4035.5,4.5696]
[1760284728425,2.71008976,4035.6,4035.4,0.44757464]
[1760284728735,0.1511,4035.5,4035.4,0.44757464]
[1760284729233,2.59774434,4035.5,4035.4,3.73417464]
[1760284732725,2.74884434,4035.5,4035.4,0.00175464]
[1760284735933,2.74884434,4035.5,4035.4,3.28835464]
[1760284735934,2.59774434,4035.5,4035.4,3.28835464]
[1760284737636,2.59774434,4035.5,4035.4,3.73417464]
[1760284738026,0.00303673,4035.6,4035.5,1.72881]
[1760284738336,0.00303673,4035.6,4035.5,5.01541]
[1760284739135,2.68887152,4035.6,4035.5,5.01541]
[1760284739335,2.17217152,4035.6,4035.5,5.01541]
[1760284739528,3.2078,4036.7,4036.6,3.73229]
[1760284739927,5.9063933,4036.7,4036.6,3.73229]
[1760284740235,3.2078,4036.7,4036.6,3.73229]
[1760284740439,5.90911835,4036.7,4036.6,3.73229]
[1760284741031,9.18092353,4036.7,4035.8,3.2078]
[1760284741229,17.55975344,4036.7,4035.8,3.2078]
[1760284741431,17.55975344,4036.7,4035.4,0.00175464]
[1760284741432,0.1511,4035.6,4035.4,0.44757464]
[1760284741836,2.82529192,4035.5,4035.4,0.44757464]
[1760284742038,2.97639192,4035.5,4035.4,0.44757464]
[1760284742234,6.04943937,4035.9,4035.7,0.44579]
[1760284742440,3.2078,4036.0,4035.7,0.44579]
[1760284742734,2.95888061,4035.9,4035.8,0.44578]
[1760284743536,1.11446,4035.8,4034.8,0.44589]
[1760284743730,0.1437,4035.0,4034.8,0.44589]
[1760284743933,5.84428415,4035.7,4034.6,3.2078]
[1760284744237,0.5896,4034.7,4034.6,3.2078]
[1760284744642,3.22302926,4034.7,4034.6,0.00271007]
[1760284744834,2.77712926,4034.7,4034.6,0.00271007]
[1760284750733,2.63342926,4034.7,4034.1,3.65377]
[1760284751128,2.86965969,4034.9,4034.1,3.65377]
[1760284751333,0.141,4034.8,4034.2,0.44595]
[1760284751736,0.44593,4034.5,4034.2,0.4477539]
[1760284751936,0.58693,4034.5,4034.2,3.8925539]
[1760284752141,2.60132623,4034.4,4034.2,3.8925539]
[1760284752343,3.04726623,4034.4,4034.2,3.4466039]
[1760284752645,3.18826623,4034.4,4034.2,3.4466039]
[1760284752939,0.141,4034.3,4034.2,0.0018039]
[1760284753343,2.98156436,4034.3,4034.2,0.0018039]
[1760284753837,2.98156436,4034.3,4034.2,3.4466039]
[1760284753838,2.84056436,4034.3,4034.2,3.4466039]
[1760284754137,2.84483738,4034.9,4034.3,0.44595]
[1760284754340,0.141,4034.8,4034.6,1.76802476]
[1760284754641,2.84483738,4034.9,4034.6,1.76802476]
[1760284754642,3.24805618,4034.9,4034.6,1.76802476]
[1760284754837,2.98583738,4034.7,4034.6,1.76802476]
[1760284755142,0.141,4034.5,4034.4,1.76802476]
[1760284755342,0.141,4034.5,4034.2,0.4477639]
[1760284755542,3.2314628,4034.5,4034.2,3.8925639]
[1760284756243,3.2314628,4034.5,4034.4,1.76829648]
[1760284757043,3.2314628,4034.5,4034.2,0.0018039]
[1760284757044,0.44595,4034.3,4034.2,1.77010038]
[1760284757250,0.58695,4034.3,4034.2,0.0018039]
[1760284757540,3.29846415,4034.3,4034.2,0.0018039]
[1760284757735,3.29846415,4034.3,4033.9,0.44599]
[1760284757736,0.44598,4034.0,4033.9,1.76829648]
[1760284757941,0.44603,4033.6,4033.0,6.6943099]
[1760284758144,0.1392,4033.9,4033.2,3.4448]
[1760284758346,2.7468654,4033.5,4033.3,3.4448]
[1760284758548,0.44602,4033.7,4033.3,0.44605]
[1760284758744,0.1392,4033.7,4033.4,3.4448]
[1760284759045,2.59097215,4033.6,4033.5,4.7474]
[1760284760948,2.59097215,4033.6,4033.5,3.4448]
[1760284761251,2.73017215,4033.6,4033.4,0.44604]
[1760284761645,2.59097215,4033.6,4033.5,3.4448]
[1760284762546,2.59097215,4033.6,4033.5,7.9552]
[1760284762847,2.59097215,4033.6,4033.5,8.40123]
[1760284763948,3.03699215,4033.6,4033.5,3.2078]
[1760284764252,0.1392,4033.4,4033.3,0.00232059]
[1760284764746,2.74363548,4033.4,4033.3,3.44712059]
[1760284764953,2.74363548,4033.4,4033.3,3.89318059]
[1760284765450,2.73428059,4033.6,4033.5,4.7474]
[1760284765638,0.00281747,4033.7,4033.5,5.19343]
[1760284765841,0.00281747,4033.7,4033.6,0.44602]
[1760284766046,0.00281747,4033.7,4033.6,3.89082]
[1760284766247,3.12128972,4033.7,4033.6,3.89082]
[1760284766448,3.12128972,4033.7,4033.5,4.5104]
[1760284766652,0.5784,4033.5,4033.4,0.44604]
[1760284767157,3.19343631,4033.5,4033.4,3.89084]
[1760284768047,3.19343631,4033.5,4033.4,5.66349817]
[1760284768249,0.1392,4033.4,4033.3,0.00232059]
[1760284768555,3.87418361,4033.4,4033.3,0.00232059]
[1760284769855,3.28893361,4033.4,4033.3,10.0385783]
[1760284770156,3.28893361,4033.4,4033.3,8.26508059]
[1760284770356,3.28893361,4033.4,4033.3,3.89318059]
[1760284770747,3.42813361,4033.4,4033.3,0.44838059]
[1760284770951,3.42813361,4033.4,4033.3,0.00232059]
[1760284771961,3.42813361,4033.4,4033.3,3.89318059]
[1760284772463,3.42813361,4033.4,4033.3,3.44712059]
[1760284772760,3.42813361,4033.4,4033.3,3.89318059]
[1760284772955,3.87418361,4033.4,4033.3,0.00232059]
[1760284774856,3.87418361,4033.4,4033.3,1.78010895]
[1760284775259,3.87418361,4033.4,4033.3,1.63810895]
[1760284775461,0.4461,4033.0,4032.8,2.1839099]
[1760284775658,0.44611,4032.9,4032.7,2.1839099]
[1760284775853,3.20924473,4032.9,4032.6,2.6300399]
[1760284776063,2.76313473,4032.9,4032.6,2.6300399]
[1760284776363,0.4461,4032.9,4032.6,0.44925138]
[1760284776657,2.82107549,4032.8,4032.6,0.00312138]
[1760284777148,2.82107549,4032.8,4032.7,3.314]
[1760284777354,2.82107549,4032.8,4032.7,7.6616099]
[1760284777558,2.58557678,4033.0,4032.8,0.44611]
[1760284777759,0.44607,4033.2,4032.8,3.76011]
[1760284777965,2.75935903,4033.1,4032.9,3.2078]
[1760284778262,2.75935903,4033.5,4032.8,3.314]
[1760284778565,6.46792833,4033.4,4032.8,3.314]
[1760284778764,0.44609,4033.0,4032.8,3.314]
[1760284779166,3.09056782,4032.9,4032.6,3.76325138]
[1760284779561,0.44609,4033.1,4032.7,0.44612]
[1760284779759,2.64446782,4032.8,4032.7,0.44612]
[1760284780062,0.4461,4032.9,4032.6,3.31712138]
[1760284780258,2.64446782,4032.9,4032.6,0.44925138]
[1760284780569,0.44609,4033.1,4032.8,3.314]
[1760284780761,0.4461,4032.9,4032.6,3.31712138]
[1760284780955,3.29758201,4032.9,4032.6,0.44925138]
[1760284781161,0.4461,4032.9,4032.7,3.314]
[1760284781368,0.44607,4033.2,4032.9,3.314]
[1760284781660,0.44609,4033.0,4032.9,3.314]
[1760284781962,2.68959271,4033.0,4032.8,3.76011]
[1760284782159,2.68959271,4033.0,4032.9,6.9679]
[1760284782359,0.44605,4033.4,4032.9,6.9679]
[1760284782360,0.00281747,4033.7,4033.0,3.4284]
[1760284782555,2.68959271,4033.3,4033.0,7.24565628]
[1760284782755,0.44606,4033.3,4033.0,7.24565628]
[1760284783163,2.6730437,4033.2,4033.1,0.44608]
[1760284783565,2.6730437,4033.3,4033.1,0.44608]
[1760284783865,0.44605,4033.4,4033.1,0.44608]
[1760284784164,2.73768948,4033.2,4033.1,0.44608]
[1760284784359,2.73768948,4033.3,4033.1,0.44608]
[1760284784558,0.44604,4033.5,4033.1,2.66694628]
[1760284784763,0.44605,4033.4,4033.1,2.66694628]
[1760284784960,3.17676844,4033.4,4033.1,5.98094628]
[1760284785153,3.18116783,4033.6,4033.2,3.76007]
[1760284785353,2.73411844,4033.3,4033.2,3.76007]
[1760284785553,2.73411844,4033.3,4033.1,0.44608]
[1760284785866,0.0034,4033.1,4033.0,1.2647]
[1760284786163,0.10662608,4033.1,4033.0,0.44609]
[1760284786570,0.10662608,4033.1,4032.9,6.4576]
[1760284786862,0.10582608,4033.1,4033.0,4.99379]
[1760284787057,0.10582608,4033.1,4033.0,7.31479]
[1760284787754,0.00281747,4033.7,4033.6,0.44602]
[1760284787960,0.00281747,4033.7,4033.6,14.4675074]
[1760284788162,2.67852863,4033.7,4033.6,14.4675074]
[1760284788364,3.2078,4035.0,4033.6,14.4675074]
[1760284788365,3.2078,4035.0,4034.8,0.44589]
[1760284788670,3.2078,4035.0,4034.9,3.2498]
[1760284788860,0.44583,4035.4,4035.0,1.74377]
[1760284789055,3.2078,4035.5,4035.2,2.321]
[1760284789261,2.70804784,4035.3,4035.2,5.5708]
[1760284789561,0.00200272,4035.3,4035.2,7.79012457]
[1760284789764,0.00200272,4035.3,4035.2,10.99792457]
[1760284789957,2.83000942,4035.3,4035.2,13.12642457]
[1760284790166,2.83000942,4035.3,4035.2,10.9071]
[1760284790360,2.83000942,4035.3,4035.2,13.12470603]
[1760284790863,2.83000942,4035.3,4035.2,10.9071]
[1760284791271,0.00200272,4035.3,4035.2,10.9071]
[1760284792462,0.00200272,4035.3,4035.2,13.12096213]
[1760284793361,0.00200272,4035.3,4035.2,10.9071]
[1760284794165,2.59110277,4035.3,4035.2,6.4576]
[1760284795168,2.59110277,4035.3,4035.2,8.22663877]
[1760284795464,2.59110277,4035.3,4035.2,6.4576]
[1760284795669,2.59110277,4035.3,4035.2,3.2078]
[1760284797062,2.59110277,4035.3,4034.9,0.44588]
[1760284797361,5.79890277,4035.3,4034.7,3.2078]
[1760284797557,11.66114101,4035.2,4034.5,1.2979]
[1760284797765,0.44596,4034.2,4034.1,1.76903877]
[1760284798062,3.26262992,4034.2,4033.7,0.44601]
[1760284798256,3.26262992,4034.2,4033.6,3.2078]
[1760284798461,2.81666992,4034.2,4033.8,0.446]
[1760284798657,0.446,4033.9,4033.6,3.2078]
[1760284798965,2.53016022,4033.8,4033.7,0.44601]
[1760284799365,2.81666992,4034.1,4033.8,0.44599]
[1760284799567,0.44595,4034.3,4033.8,0.44599]
[1760284799759,0.44593,4034.5,4034.0,0.44597]
[1760284799968,2.84648127,4034.2,4034.1,0.44596]
[1760284800161,5.89762867,4034.5,4033.7,3.2498]
[1760284800367,2.69920893,4034.4,4033.7,3.2498]
[1760284800867,3.15089557,4034.3,4033.7,3.2498]
[1760284801369,3.15089557,4034.3,4034.1,6.4576]
[1760284801370,2.68510958,4034.2,4034.1,6.4576]
[1760284801666,2.68510958,4034.2,4034.1,3.2078]
[1760284801868,2.68510958,4034.2,4034.1,6.4576]
[1760284802067,2.62225447,4034.6,4034.2,3.2498]
[1760284802269,3.20980272,4035.3,4034.6,3.2498]
[1760284802470,3.20980272,4035.3,4034.5,1.2979]
[1760284802471,3.21572962,4035.2,4035.1,3.79305]
[1760284802668,0.00200272,4035.3,4034.8,3.2078]
[1760284803663,0.00200272,4035.3,4035.1,0.44585]
[1760284803867,5.79978245,4035.2,4035.1,0.44585]
[1760284804064,5.79978245,4035.2,4035.1,3.79305]
[1760284804266,2.61095424,4035.2,4035.1,3.79305]
[1760284804469,0.00200272,4035.3,4035.1,3.79305]
[1760284805177,0.44555,4037.9,4037.3,0.44561]
[1760284805472,3.16011308,4037.8,4037.5,0.44558]
[1760284805775,0.0013,4037.7,4037.2,3.2078]
[1760284805974,3.16011308,4037.9,4037.4,0.4456]
[1760284806272,3.16141308,4037.6,4037.4,0.0031247]
[1760284806472,0.0013,4037.8,4037.4,0.0031247]
[1760284806660,6.05394868,4037.5,4037.4,0.0031247]
[1760284806866,0.0013,4037.5,4037.4,0.0031247]
[1760284807271,5.95801093,4037.5,4037.4,0.0031247]
[1760284807778,5.95671093,4037.5,4037.4,3.3503247]
[1760284807978,0.00314219,4037.9,4037.5,1.3795]
[1760284808177,0.00314219,4037.9,4037.8,7.00056]
[1760284809876,2.19e-06,4037.9,4037.8,7.00056]
[1760284810581,0.0013,4039.9,4038.6,3.3472]
[1760284810873,0.0013,4039.9,4038.6,7.00047]
[1760284811080,0.0013,4040.5,4039.8,0.44533]
[1760284811272,0.0013,4040.5,4039.7,0.44534]
[1760284811468,5.92745348,4040.2,4039.9,7.00032]
[1760284811666,0.0113,4040.2,4039.9,6.555]
[1760284812078,6.03839629,4040.1,4039.9,7.00032]
[1760284812572,6.03839629,4040.1,4039.9,3.65312]
[1760284812780,6.03839629,4040.1,4040.0,3.3472]
[1760284813079,6.03839629,4040.1,4039.9,3.2078]
[1760284813275,3.27241965,4040.1,4040.0,4.7267]
[1760284813579,2.62528967,4040.0,4039.9,3.2078]
[1760284813770,2.61398967,4040.0,4039.9,6.555]
[1760284813973,3.22020946,4040.0,4039.9,6.555]
[1760284814177,0.0113,4040.4,4039.9,7.00032]
[1760284814382,0.0113,4040.4,4040.0,3.3472]
[1760284814583,6.03511091,4040.3,4039.9,3.2078]
[1760284814879,0.0113,4040.1,4039.9,3.2078]
[1760284815073,0.44532,4040.0,4039.4,3.2078]
[1760284815274,5.87175874,4040.0,4039.4,3.2078]
[1760284815577,0.44532,4040.0,4039.4,3.2078]
[1760284815781,5.84139397,4039.9,4039.3,0.44539]
[1760284815975,0.0113,4039.5,4038.9,3.2078]
[1760284816179,0.0113,4038.6,4037.9,3.3472]
[1760284816475,0.0113,4038.6,4037.7,3.2078]
[1760284816476,0.10154744,4038.5,4037.7,3.2078]
[1760284816779,0.10154744,4038.5,4038.4,3.2078]
[1760284816980,0.10154744,4038.5,4038.4,6.555]
[1760284817280,2.73178039,4039.0,4038.4,7.00049]
[1760284817475,12.00566239,4041.6,4038.5,1.3795]
[1760284817675,0.0113,4038.7,4038.2,3.3472]
[1760284817877,0.4455,4038.4,4038.2,3.3472]
[1760284818078,0.4455,4038.4,4036.9,1.11413]
[1760284818079,0.0113,4037.5,4037.2,3.2078]
[1760284818290,0.0113,4037.5,4036.5,1.3795]
[1760284818291,0.01354699,4037.5,4036.8,0.44566]
[1760284818479,3.28896349,4037.5,4036.9,3.3472]
[1760284818680,3.166236,4037.5,4036.9,3.3472]
[1760284818875,2.720646,4037.5,4036.9,3.79285]
[1760284819079,5.93830464,4037.5,4036.8,3.2078]
[1760284819282,5.93830464,4037.5,4036.5,1.8252]
[1760284819483,5.93830464,4037.5,4036.8,3.3472]
[1760284819788,5.93830464,4037.5,4036.8,3.79286]
[1760284820094,0.00224699,4037.5,4037.4,6.5581247]
[1760284820784,0.01354699,4037.5,4037.4,3.2109247]
[1760284821084,2.71394698,4037.5,4037.4,0.0031247]
[1760284821486,5.90720101,4037.5,4037.4,0.0031247]
[1760284821985,2.70264698,4037.5,4037.4,3.3503247]
[1760284822485,0.00224699,4037.5,4037.4,6.5581247]
[1760284824178,2.61414894,4037.5,4037.4,3.2109247]
[1760284824379,0.00224699,4037.5,4037.4,7.0037247]
[1760284825086,0.00224699,4037.5,4037.4,6.5581247]
[1760284828086,0.00224699,4037.5,4037.0,2.49363]
[1760284828087,6.3306647,4037.5,4037.0,1.3795]
[1760284828389,5.8737647,4037.5,4037.1,3.3472]
[1760284828595,2.6659647,4037.5,4037.1,3.3472]
[1760284828786,2.6659647,4037.5,4037.0,1.3795]
[1760284828787,2.6659647,4037.5,4037.3,3.79281]
[1760284829187,2.6659647,4037.5,4037.4,3.3472]
[1760284829387,0.00224699,4037.5,4037.4,3.3472]
[1760284829583,2.87101408,4037.5,4037.4,3.3472]
[1760284829788,3.32790408,4037.5,4037.3,0.00311132]
[1760284830090,2.87101408,4037.5,4037.3,0.00311132]
[1760284830294,0.0113,4037.4,4037.3,0.00311132]
[1760284830692,0.00224699,4037.5,4037.4,3.3472]
[1760284834490,0.00224699,4037.5,4037.3,0.00311132]
[1760284834690,0.007,4037.4,4037.3,0.00311132]
[1760284834897,2.74534841,4037.5,4037.3,0.44872132]
[1760284835095,2.74534841,4037.5,4037.3,3.69482132]
[1760284835300,0.00224699,4037.5,4037.4,3.2461]
[1760284837806,4.38416195,4042.5,4037.3,0.44872132]
[1760284837807,0.0093,4039.5,4038.9,0.44543]
[1760284838007,0.0093,4039.5,4039.1,3.2461]
[1760284838208,5.79913232,4039.4,4039.1,3.2461]
[1760284838611,6.24452232,4039.4,4039.1,3.2461]
[1760284838803,6.24452232,4039.4,4039.0,1.3697]
[1760284838804,0.4547,4039.3,4039.0,4.6158]
[1760284838997,5.80146928,4039.4,4039.2,3.2461]